[Event "Titled Tuesday Blitz March 14 Late 2023"]
[White "Tanenbaum, Zachary"]
[Black "Hajiyev, Kanan"]
[WhiteFideId "2060850"]
[BlackFideId "13404148"]
[WhiteElo "2175"]
[BlackElo "2103"]
[Result "1-0"]
[Round "05"]
[TimeControl "180+1"]
[Date "2023.03.14"]
[WhiteClock "0:00:34"]
[BlackClock "0:00:04"]

1. e4 {[%clk 0:03:00]}  c6 {[%clk 0:02:55]} 2. d4 {[%clk 0:03:00]}  d5 {[%clk 0:02:54]} 3. exd5 {[%clk 0:03:01]}  cxd5 {[%clk 0:02:54]} 4. Bd3 {[%clk 0:03:01]}  Nc6 {[%clk 0:02:54]} 5. c3 {[%clk 0:03:02]}  Qc7 {[%clk 0:02:54]} 6. h3 {[%clk 0:03:01]}  Nf6 {[%clk 0:02:54]} 7. Nf3 {[%clk 0:03:00]}  g6 {[%clk 0:02:52]} 8. Qc2 {[%clk 0:02:59]}  Bg7 {[%clk 0:02:49]} 9. O-O {[%clk 0:02:59]}  O-O {[%clk 0:02:47]} 10. Re1 {[%clk 0:02:59]}  Be6 {[%clk 0:02:46]} 11. Ng5 {[%clk 0:02:50]}  Bd7 {[%clk 0:02:43]} 12. Be3 {[%clk 0:02:43]}  Rac8 {[%clk 0:02:38]} 13. Qe2 {[%clk 0:02:38]}  e5 {[%clk 0:02:13]} 14. dxe5 {[%clk 0:02:37]}  Qxe5 {[%clk 0:02:03]} 15. Nf3 {[%clk 0:02:32]}  Qh5 {[%clk 0:02:00]} 16. Nd4 {[%clk 0:02:17]}  Qh4 {[%clk 0:01:47]} 17. Nd2 {[%clk 0:02:13]}  Ne5 {[%clk 0:01:45]} 18. N2f3 {[%clk 0:02:10]}  Nxf3+ {[%clk 0:01:30]} 19. Qxf3 {[%clk 0:02:11]}  Rfe8 {[%clk 0:01:20]} 20. Bf4 {[%clk 0:01:37]}  Ne4 {[%clk 0:01:16]} 21. Bxe4 {[%clk 0:01:18]}  dxe4 {[%clk 0:01:12]} 22. Rxe4 {[%clk 0:01:19]}  Rxe4 {[%clk 0:01:07]} 23. Qxe4 {[%clk 0:01:20]}  g5 {[%clk 0:00:54]} 24. Qxb7 {[%clk 0:01:11]}  gxf4 {[%clk 0:00:30]} 25. Qxd7 {[%clk 0:01:10]}  Rd8 {[%clk 0:00:30]} 26. Qxa7 {[%clk 0:01:00]}  Bxd4 {[%clk 0:00:25]} 27. cxd4 {[%clk 0:01:01]}  f3 {[%clk 0:00:26]} 28. Qc7 {[%clk 0:00:51]}  fxg2 {[%clk 0:00:18]} 29. Qg3+ {[%clk 0:00:51]}  Qxg3 {[%clk 0:00:18]} 30. fxg3 {[%clk 0:00:51]}  Rxd4 {[%clk 0:00:19]} 31. a4 {[%clk 0:00:51]}  Rd2 {[%clk 0:00:16]} 32. Rb1 {[%clk 0:00:43]}  Kf8 {[%clk 0:00:15]} 33. a5 {[%clk 0:00:42]}  Ke7 {[%clk 0:00:12]} 34. a6 {[%clk 0:00:41]}  Rd7 {[%clk 0:00:04]} 35. b4 {[%clk 0:00:35]}  Kd6 {[%clk 0:00:04]} 36. Rd1+ {[%clk 0:00:34]} 1-0


[Site "https://www.chess.com"]

[Event "Titled Tuesday Blitz March 14 Late 2023"]
[White "Trakru, Rohun"]
[Black "Friedel, Tom"]
[WhiteFideId "2097613"]
[BlackFideId "2002108"]
[WhiteElo "1852"]
[BlackElo "2284"]
[Result "1-0"]
[Round "05"]
[TimeControl "180+1"]
[Date "2023.03.14"]
[WhiteClock "0:01:18"]
[BlackClock "0:00:19"]

1. e4 {[%clk 0:03:00]}  c6 {[%clk 0:02:54]} 2. d4 {[%clk 0:03:00]}  d5 {[%clk 0:02:54]} 3. exd5 {[%clk 0:03:00]}  cxd5 {[%clk 0:02:54]} 4. Bd3 {[%clk 0:03:01]}  Nf6 {[%clk 0:02:54]} 5. c3 {[%clk 0:02:57]}  Nc6 {[%clk 0:02:54]} 6. Bf4 {[%clk 0:02:56]}  g6 {[%clk 0:02:54]} 7. Nf3 {[%clk 0:02:39]}  Bg7 {[%clk 0:02:52]} 8. O-O {[%clk 0:02:38]}  O-O {[%clk 0:02:52]} 9. Re1 {[%clk 0:02:18]}  Bg4 {[%clk 0:02:50]} 10. Nbd2 {[%clk 0:02:16]}  Nh5 {[%clk 0:02:47]} 11. Be3 {[%clk 0:02:16]}  e5 {[%clk 0:02:43]} 12. dxe5 {[%clk 0:02:14]}  Nxe5 {[%clk 0:02:44]} 13. Be2 {[%clk 0:02:13]}  Nxf3+ {[%clk 0:02:30]} 14. Nxf3 {[%clk 0:02:08]}  Re8 {[%clk 0:02:26]} 15. h3 {[%clk 0:02:08]}  Be6 {[%clk 0:01:54]} 16. Nd4 {[%clk 0:02:05]}  Nf6 {[%clk 0:01:54]} 17. Bf3 {[%clk 0:02:04]}  Ne4 {[%clk 0:01:44]} 18. Qb3 {[%clk 0:01:58]}  Nc5 {[%clk 0:00:55]} 19. Qb5 {[%clk 0:01:43]}  Rc8 {[%clk 0:00:43]} 20. Nxe6 {[%clk 0:01:41]}  Nxe6 {[%clk 0:00:43]} 21. Qxb7 {[%clk 0:01:41]}  Rb8 {[%clk 0:00:40]} 22. Qxd5 {[%clk 0:01:30]}  Rxb2 {[%clk 0:00:40]} 23. Bxa7 {[%clk 0:01:26]}  Bxc3 {[%clk 0:00:36]} 24. Red1 {[%clk 0:01:21]}  Qxd5 {[%clk 0:00:28]} 25. Bxd5 {[%clk 0:01:22]}  Rc2 {[%clk 0:00:20]} 26. Rac1 {[%clk 0:01:18]}  Rxa2 {[%clk 0:00:19]} 1-0


[Site "https://www.chess.com"]

[Event "Titled Tuesday Blitz March 14 Late 2023"]
[White "Vachier-Lagrave, Maxime"]
[Black "Rustemov, Alexander"]
[WhiteFideId "623539"]
[BlackFideId "4119002"]
[WhiteElo "2740"]
[BlackElo "2940"]
[Result "1-0"]
[Round "05"]
[TimeControl "180+1"]
[Date "2023.03.14"]
[WhiteClock "0:00:22"]
[BlackClock "0:00:04"]

1. e4 {[%clk 0:03:00]}  e6 {[%clk 0:03:00]} 2. d4 {[%clk 0:03:00]}  d5 {[%clk 0:03:00]} 3. Nc3 {[%clk 0:03:01]}  dxe4 {[%clk 0:03:01]} 4. Nxe4 {[%clk 0:03:01]}  Bd7 {[%clk 0:03:01]} 5. Nf3 {[%clk 0:02:58]}  Bc6 {[%clk 0:03:02]} 6. Bd3 {[%clk 0:02:58]}  Nd7 {[%clk 0:03:03]} 7. Qe2 {[%clk 0:02:57]}  Ngf6 {[%clk 0:03:03]} 8. Neg5 {[%clk 0:02:57]}  Qe7 {[%clk 0:03:03]} 9. h4 {[%clk 0:02:47]}  h6 {[%clk 0:03:01]} 10. Nh3 {[%clk 0:02:48]}  Bxf3 {[%clk 0:02:45]} 11. Qxf3 {[%clk 0:02:46]}  O-O-O {[%clk 0:02:43]} 12. O-O {[%clk 0:02:44]}  Kb8 {[%clk 0:02:36]} 13. a4 {[%clk 0:02:40]}  Nd5 {[%clk 0:02:33]} 14. g3 {[%clk 0:02:37]}  Qf6 {[%clk 0:02:32]} 15. Qxf6 {[%clk 0:02:33]}  N7xf6 {[%clk 0:02:32]} 16. Be2 {[%clk 0:02:21]}  a5 {[%clk 0:02:30]} 17. Rd1 {[%clk 0:02:17]}  c6 {[%clk 0:02:21]} 18. Kg2 {[%clk 0:02:17]}  Bd6 {[%clk 0:02:12]} 19. Ng1 {[%clk 0:02:17]}  Rhe8 {[%clk 0:02:05]} 20. Nf3 {[%clk 0:02:17]}  Bc7 {[%clk 0:01:54]} 21. Ne5 {[%clk 0:02:14]}  Re7 {[%clk 0:01:52]} 22. Bd2 {[%clk 0:02:04]}  Nd7 {[%clk 0:01:50]} 23. Nc4 {[%clk 0:02:03]}  b6 {[%clk 0:01:43]} 24. Bf3 {[%clk 0:02:02]}  Kb7 {[%clk 0:01:43]} 25. Rab1 {[%clk 0:01:59]}  N7f6 {[%clk 0:01:39]} 26. b4 {[%clk 0:01:49]}  axb4 {[%clk 0:01:32]} 27. Bxb4 {[%clk 0:01:50]}  Nxb4 {[%clk 0:01:29]} 28. Rxb4 {[%clk 0:01:51]}  Nd5 {[%clk 0:01:27]} 29. Na5+ {[%clk 0:01:51]}  Kc8 {[%clk 0:01:12]} 30. Nxc6 {[%clk 0:01:51]}  Nxb4 {[%clk 0:01:12]} 31. Nxe7+ {[%clk 0:01:34]}  Kd7 {[%clk 0:01:12]} 32. c3 {[%clk 0:01:34]}  Kxe7 {[%clk 0:00:59]} 33. cxb4 {[%clk 0:01:34]}  Rd6 {[%clk 0:00:28]} 34. Kf1 {[%clk 0:01:25]}  Kd8 {[%clk 0:00:27]} 35. Ke2 {[%clk 0:01:24]}  e5 {[%clk 0:00:25]} 36. d5 {[%clk 0:01:21]}  f5 {[%clk 0:00:25]} 37. h5 {[%clk 0:01:17]}  e4 {[%clk 0:00:25]} 38. Bg2 {[%clk 0:01:16]}  Rd7 {[%clk 0:00:25]} 39. Bh3 {[%clk 0:01:14]}  Rf7 {[%clk 0:00:20]} 40. d6 {[%clk 0:01:14]}  Bb8 {[%clk 0:00:21]} 41. Rd5 {[%clk 0:01:13]}  Rf6 {[%clk 0:00:20]} 42. Bxf5 {[%clk 0:01:00]}  Rxd6 {[%clk 0:00:20]} 43. Rb5 {[%clk 0:00:58]}  Bc7 {[%clk 0:00:17]} 44. Bxe4 {[%clk 0:00:52]}  Rd4 {[%clk 0:00:18]} 45. Ke3 {[%clk 0:00:51]}  Rc4 {[%clk 0:00:17]} 46. Kd3 {[%clk 0:00:51]}  Rc1 {[%clk 0:00:17]} 47. Rf5 {[%clk 0:00:49]}  Ke7 {[%clk 0:00:16]} 48. Bd5 {[%clk 0:00:48]}  Bd6 {[%clk 0:00:14]} 49. Rf7+ {[%clk 0:00:48]}  Ke8 {[%clk 0:00:14]} 50. Rxg7 {[%clk 0:00:47]}  Bxb4 {[%clk 0:00:12]} 51. Rg6 {[%clk 0:00:45]}  Bc5 {[%clk 0:00:12]} 52. f4 {[%clk 0:00:41]}  Rg1 {[%clk 0:00:11]} 53. Ke4 {[%clk 0:00:41]}  Ke7 {[%clk 0:00:08]} 54. g4 {[%clk 0:00:39]}  Bd6 {[%clk 0:00:06]} 55. Re6+ {[%clk 0:00:28]}  Kd7 {[%clk 0:00:06]} 56. Kf5 {[%clk 0:00:25]}  Rf1 {[%clk 0:00:05]} 57. Re4 {[%clk 0:00:24]}  Rf2 {[%clk 0:00:06]} 58. Bc4 {[%clk 0:00:23]}  Bc7 {[%clk 0:00:06]} 59. Bb5+ {[%clk 0:00:23]}  Kd6 {[%clk 0:00:05]} 60. Rd4+ {[%clk 0:00:21]}  Kc5 {[%clk 0:00:04]} 61. Rc4+ {[%clk 0:00:22]}  Kd6 {[%clk 0:00:04]} 62. Rc6+ {[%clk 0:00:22]} 1-0


[Site "https://www.chess.com"]

[Event "Titled Tuesday Blitz March 14 Late 2023"]
[White "Womacka, Mathias"]
[Black "Sakun, Volodymyr"]
[WhiteFideId "4611390"]
[BlackFideId "14114062"]
[WhiteElo "2377"]
[BlackElo "2331"]
[Result "0-1"]
[Round "05"]
[TimeControl "180+1"]
[Date "2023.03.14"]
[WhiteClock "0:00:15"]
[BlackClock "0:00:13"]

1. e4 {[%clk 0:03:00]}  e5 {[%clk 0:02:59]} 2. Nf3 {[%clk 0:02:59]}  Nc6 {[%clk 0:03:00]} 3. Bb5 {[%clk 0:02:58]}  Nf6 {[%clk 0:03:00]} 4. O-O {[%clk 0:02:57]}  d6 {[%clk 0:03:00]} 5. d4 {[%clk 0:02:56]}  exd4 {[%clk 0:03:00]} 6. Nxd4 {[%clk 0:02:55]}  Bd7 {[%clk 0:03:01]} 7. Bxc6 {[%clk 0:02:55]}  bxc6 {[%clk 0:03:01]} 8. Qf3 {[%clk 0:02:54]}  c5 {[%clk 0:02:57]} 9. Nf5 {[%clk 0:02:51]}  g6 {[%clk 0:02:56]} 10. Nh6 {[%clk 0:02:46]}  Bxh6 {[%clk 0:02:20]} 11. Bxh6 {[%clk 0:02:44]}  Ng4 {[%clk 0:02:21]} 12. Bg7 {[%clk 0:02:36]}  Rg8 {[%clk 0:02:20]} 13. Bc3 {[%clk 0:02:36]}  Qg5 {[%clk 0:01:42]} 14. Qg3 {[%clk 0:02:16]}  Qe7 {[%clk 0:01:22]} 15. Na3 {[%clk 0:02:05]}  f6 {[%clk 0:01:14]} 16. h3 {[%clk 0:01:55]}  Ne5 {[%clk 0:01:12]} 17. f4 {[%clk 0:01:54]}  Nc6 {[%clk 0:01:03]} 18. e5 {[%clk 0:01:47]}  dxe5 {[%clk 0:01:03]} 19. fxe5 {[%clk 0:01:48]}  f5 {[%clk 0:01:04]} 20. e6 {[%clk 0:01:18]}  Bxe6 {[%clk 0:01:04]} 21. Rfe1 {[%clk 0:01:18]}  Kf7 {[%clk 0:01:02]} 22. Re3 {[%clk 0:00:50]}  Nd4 {[%clk 0:00:45]} 23. Rae1 {[%clk 0:00:47]}  Qd7 {[%clk 0:00:22]} 24. Qh4 {[%clk 0:00:39]}  g5 {[%clk 0:00:16]} 25. Qxh7+ {[%clk 0:00:37]}  Rg7 {[%clk 0:00:16]} 26. Qh5+ {[%clk 0:00:36]}  Kg8 {[%clk 0:00:16]} 27. Kh1 {[%clk 0:00:33]}  Bf7 {[%clk 0:00:16]} 28. Qh6 {[%clk 0:00:30]}  Rg6 {[%clk 0:00:17]} 29. Qh5 {[%clk 0:00:28]}  Rg7 {[%clk 0:00:17]} 30. Qd1 {[%clk 0:00:27]}  Bd5 {[%clk 0:00:15]} 31. Re5 {[%clk 0:00:17]}  f4 {[%clk 0:00:13]} 32. Bxd4 {[%clk 0:00:15]}  Qxh3+ {[%clk 0:00:13]} 0-1


[Site "https://www.chess.com"]

[Event "Titled Tuesday Blitz March 14 Late 2023"]
[White "Yang, Kevin"]
[Black "Liu, Casper"]
[WhiteFideId "30908485"]
[BlackFideId "1454153"]
[WhiteElo "2055"]
[BlackElo "2221"]
[Result "1/2-1/2"]
[Round "05"]
[TimeControl "180+1"]
[Date "2023.03.14"]
[WhiteClock "0:00:08"]
[BlackClock "0:00:10"]

1. d4 {[%clk 0:02:58]}  Nf6 {[%clk 0:02:55]} 2. Nf3 {[%clk 0:02:58]}  g6 {[%clk 0:02:52]} 3. Nc3 {[%clk 0:02:52]}  Bg7 {[%clk 0:02:48]} 4. Bf4 {[%clk 0:02:51]}  d6 {[%clk 0:02:49]} 5. h4 {[%clk 0:02:50]}  Nbd7 {[%clk 0:02:45]} 6. e3 {[%clk 0:02:50]}  c5 {[%clk 0:02:45]} 7. Be2 {[%clk 0:02:46]}  O-O {[%clk 0:02:42]} 8. Qd2 {[%clk 0:02:42]}  a6 {[%clk 0:02:37]} 9. a4 {[%clk 0:02:41]}  h5 {[%clk 0:02:26]} 10. Ng5 {[%clk 0:02:36]}  Qb6 {[%clk 0:02:25]} 11. O-O {[%clk 0:02:20]}  e5 {[%clk 0:02:07]} 12. dxe5 {[%clk 0:02:15]}  dxe5 {[%clk 0:02:08]} 13. Bg3 {[%clk 0:02:13]}  Rd8 {[%clk 0:02:02]} 14. Bc4 {[%clk 0:02:08]}  Rf8 {[%clk 0:01:58]} 15. a5 {[%clk 0:01:59]}  Qc6 {[%clk 0:01:54]} 16. Qd3 {[%clk 0:01:53]}  Ne8 {[%clk 0:01:53]} 17. Bd5 {[%clk 0:01:38]}  Qf6 {[%clk 0:01:42]} 18. Nce4 {[%clk 0:01:19]}  Qe7 {[%clk 0:01:38]} 19. Nc3 {[%clk 0:00:55]}  Qf6 {[%clk 0:00:54]} 20. f4 {[%clk 0:00:54]}  c4 {[%clk 0:00:48]} 21. Qxc4 {[%clk 0:00:43]}  Nd6 {[%clk 0:00:46]} 22. Qd3 {[%clk 0:00:23]}  Nc5 {[%clk 0:00:46]} 23. Qe2 {[%clk 0:00:21]}  Qe7 {[%clk 0:00:40]} 24. b4 {[%clk 0:00:17]}  Bg4 {[%clk 0:00:38]} 25. Qd2 {[%clk 0:00:16]}  Nd7 {[%clk 0:00:38]} 26. Rae1 {[%clk 0:00:16]}  Rad8 {[%clk 0:00:37]} 27. Na4 {[%clk 0:00:10]}  Nf6 {[%clk 0:00:35]} 28. Nb6 {[%clk 0:00:10]}  Nxd5 {[%clk 0:00:33]} 29. Nxd5 {[%clk 0:00:10]}  Qe8 {[%clk 0:00:31]} 30. fxe5 {[%clk 0:00:10]}  Bxe5 {[%clk 0:00:30]} 31. Bxe5 {[%clk 0:00:10]}  Qxe5 {[%clk 0:00:30]} 32. Nf6+ {[%clk 0:00:11]}  Kg7 {[%clk 0:00:29]} 33. Nxg4 {[%clk 0:00:09]}  hxg4 {[%clk 0:00:29]} 34. Qf2 {[%clk 0:00:09]}  Nf5 {[%clk 0:00:28]} 35. e4 {[%clk 0:00:08]}  g3 {[%clk 0:00:27]} 36. Qc5 {[%clk 0:00:05]}  Qxc5+ {[%clk 0:00:24]} 37. bxc5 {[%clk 0:00:06]}  Nxh4 {[%clk 0:00:25]} 38. e5 {[%clk 0:00:02]}  Rde8 {[%clk 0:00:14]} 39. Rf4 {[%clk 0:00:02]}  Nf5 {[%clk 0:00:14]} 40. Nf3 {[%clk 0:00:02]}  f6 {[%clk 0:00:14]} 41. exf6+ {[%clk 0:00:03]}  Kxf6 {[%clk 0:00:15]} 42. Rxe8 {[%clk 0:00:03]}  Rxe8 {[%clk 0:00:16]} 43. Kf1 {[%clk 0:00:03]}  g5 {[%clk 0:00:14]} 44. Rb4 {[%clk 0:00:04]}  Re7 {[%clk 0:00:14]} 45. Rb6+ {[%clk 0:00:04]}  Kg7 {[%clk 0:00:12]} 46. Nxg5 {[%clk 0:00:03]}  Ne3+ {[%clk 0:00:13]} 47. Kg1 {[%clk 0:00:04]}  Nxc2 {[%clk 0:00:14]} 48. Ne6+ {[%clk 0:00:04]}  Kf7 {[%clk 0:00:14]} 49. Ng5+ {[%clk 0:00:04]}  Kg7 {[%clk 0:00:14]} 50. Nf3 {[%clk 0:00:05]}  Ne3 {[%clk 0:00:13]} 51. Rb4 {[%clk 0:00:04]}  Nd5 {[%clk 0:00:12]} 52. Rg4+ {[%clk 0:00:04]}  Kf7 {[%clk 0:00:13]} 53. Rxg3 {[%clk 0:00:05]}  Rc7 {[%clk 0:00:13]} 54. Rg5 {[%clk 0:00:05]}  Rxc5 {[%clk 0:00:13]} 55. Rh5 {[%clk 0:00:05]}  Rxa5 {[%clk 0:00:13]} 56. Rh7+ {[%clk 0:00:05]}  Kg6 {[%clk 0:00:12]} 57. Rxb7 {[%clk 0:00:06]}  Ra1+ {[%clk 0:00:12]} 58. Kh2 {[%clk 0:00:06]}  a5 {[%clk 0:00:13]} 59. Ne5+ {[%clk 0:00:06]}  Kf5 {[%clk 0:00:13]} 60. Nc6 {[%clk 0:00:07]}  a4 {[%clk 0:00:13]} 61. Rb5 {[%clk 0:00:07]}  Ke6 {[%clk 0:00:12]} 62. Nd4+ {[%clk 0:00:07]}  Ke5 {[%clk 0:00:12]} 63. Nc2 {[%clk 0:00:08]}  Ra2 {[%clk 0:00:07]} 64. Rxd5+ {[%clk 0:00:07]}  Kxd5 {[%clk 0:00:07]} 65. Nb4+ {[%clk 0:00:08]}  Kc4 {[%clk 0:00:08]} 66. Nxa2 {[%clk 0:00:09]}  Kb3 {[%clk 0:00:08]} 67. g4 {[%clk 0:00:09]}  Kxa2 {[%clk 0:00:08]} 68. g5 {[%clk 0:00:10]}  a3 {[%clk 0:00:09]} 69. g6 {[%clk 0:00:11]}  Kb1 {[%clk 0:00:08]} 70. g7 {[%clk 0:00:11]}  a2 {[%clk 0:00:08]} 71. g8=Q {[%clk 0:00:12]}  a1=Q {[%clk 0:00:09]} 72. Qg6+ {[%clk 0:00:11]}  Ka2 {[%clk 0:00:09]} 73. Qa6+ {[%clk 0:00:09]}  Kb1 {[%clk 0:00:09]} 74. Qd3+ {[%clk 0:00:09]}  Ka2 {[%clk 0:00:10]} 75. Qc4+ {[%clk 0:00:07]}  Kb1 {[%clk 0:00:10]} 76. Qf1+ {[%clk 0:00:07]}  Ka2 {[%clk 0:00:10]} 77. Qxa1+ {[%clk 0:00:08]}  Kxa1 {[%clk 0:00:10]} 1/2-1/2


[Site "https://www.chess.com"]

[Event "Titled Tuesday Blitz March 14 Late 2023"]
[White "Yelisieiev, Yevhenii"]
[Black "Davidson, Kevin"]
[WhiteFideId "14139642"]
[BlackFideId "2056810"]
[WhiteElo "2447"]
[BlackElo "2151"]
[Result "1-0"]
[Round "05"]
[TimeControl "180+1"]
[Date "2023.03.14"]
[WhiteClock "0:00:37"]
[BlackClock "0:00:08"]

1. d4 {[%clk 0:03:00]}  Nf6 {[%clk 0:02:59]} 2. Nf3 {[%clk 0:03:00]}  g6 {[%clk 0:02:59]} 3. g3 {[%clk 0:03:00]}  Bg7 {[%clk 0:02:59]} 4. Bg2 {[%clk 0:03:01]}  O-O {[%clk 0:02:59]} 5. O-O {[%clk 0:03:01]}  d6 {[%clk 0:02:59]} 6. b3 {[%clk 0:03:02]}  e5 {[%clk 0:02:58]} 7. dxe5 {[%clk 0:03:02]}  Ng4 {[%clk 0:02:58]} 8. Bb2 {[%clk 0:03:02]}  Nc6 {[%clk 0:02:58]} 9. c4 {[%clk 0:03:02]}  dxe5 {[%clk 0:02:57]} 10. h3 {[%clk 0:02:46]}  Nh6 {[%clk 0:02:57]} 11. e4 {[%clk 0:02:40]}  f5 {[%clk 0:02:46]} 12. Nc3 {[%clk 0:02:29]}  Nd4 {[%clk 0:02:39]} 13. exf5 {[%clk 0:02:21]}  Nhxf5 {[%clk 0:02:25]} 14. Re1 {[%clk 0:02:00]}  Nxf3+ {[%clk 0:02:22]} 15. Bxf3 {[%clk 0:01:48]}  Nd4 {[%clk 0:02:18]} 16. Bg2 {[%clk 0:01:42]}  c6 {[%clk 0:02:02]} 17. Ne4 {[%clk 0:01:41]}  Bf5 {[%clk 0:01:43]} 18. Ba3 {[%clk 0:01:21]}  Re8 {[%clk 0:00:55]} 19. g4 {[%clk 0:00:47]}  Bxe4 {[%clk 0:00:53]} 20. Rxe4 {[%clk 0:00:47]}  Qa5 {[%clk 0:00:48]} 21. Bb2 {[%clk 0:00:42]}  Rad8 {[%clk 0:00:47]} 22. Qe1 {[%clk 0:00:39]}  Qa6 {[%clk 0:00:24]} 23. Bxd4 {[%clk 0:00:37]}  Rxd4 {[%clk 0:00:08]} 24. Rxd4 {[%clk 0:00:37]} 1-0


[Site "https://www.chess.com"]

[Event "Titled Tuesday Blitz March 14 Late 2023"]
[White "Sanal, Vahap"]
[Black "TimGrutter03"]
[WhiteFideId "6300545"]
[WhiteElo "2606"]
[BlackElo "2513"]
[Result "1-0"]
[Round "05"]
[TimeControl "180+2"]
[Date "2023.03.14"]
[WhiteClock "0:02:35"]
[BlackClock "0:02:21"]

1. Nf3 {[%clk 0:03:00]}  Nf6 {[%clk 0:02:59]} 2. b3 {[%clk 0:03:00]}  g6 {[%clk 0:02:58]} 3. Bb2 {[%clk 0:03:00]}  Bg7 {[%clk 0:02:58]} 4. g3 {[%clk 0:03:01]}  O-O {[%clk 0:02:58]} 5. Bg2 {[%clk 0:03:01]}  d6 {[%clk 0:02:58]} 6. d4 {[%clk 0:03:01]}  b5 {[%clk 0:02:56]} 7. O-O {[%clk 0:03:01]}  Bb7 {[%clk 0:02:55]} 8. Nbd2 {[%clk 0:02:59]}  Nbd7 {[%clk 0:02:53]} 9. c4 {[%clk 0:03:00]}  bxc4 {[%clk 0:02:51]} 10. bxc4 {[%clk 0:03:00]}  c5 {[%clk 0:02:51]} 11. d5 {[%clk 0:03:00]}  Qa5 {[%clk 0:02:49]} 12. Rb1 {[%clk 0:02:59]}  Rab8 {[%clk 0:02:47]} 13. Qc2 {[%clk 0:02:57]}  Nb6 {[%clk 0:02:41]} 14. Bc3 {[%clk 0:02:50]}  Qa4 {[%clk 0:02:38]} 15. Rb3 {[%clk 0:02:42]}  Nxc4 {[%clk 0:02:30]} 16. Bxf6 {[%clk 0:02:42]}  Nxd2 {[%clk 0:02:29]} 17. Bxg7 {[%clk 0:02:42]}  Nxf3+ {[%clk 0:02:24]} 18. Bxf3 {[%clk 0:02:39]}  Kxg7 {[%clk 0:02:24]} 19. Qb2+ {[%clk 0:02:40]}  Qd4 {[%clk 0:02:20]} 20. Qxd4+ {[%clk 0:02:34]}  cxd4 {[%clk 0:02:21]} 21. Rfb1 {[%clk 0:02:35]} 1-0


[Site "https://www.chess.com"]

[Event "Titled Tuesday Blitz March 14 Late 2023"]
[White "Pakleza, Zbigniew"]
[Black "Postma, Dinant"]
[WhiteFideId "1119290"]
[BlackFideId "1018612"]
[WhiteElo "2410"]
[BlackElo "2514"]
[Result "0-1"]
[Round "05"]
[TimeControl "180+2"]
[Date "2023.03.14"]
[WhiteClock "0:00:03"]
[BlackClock "0:00:16"]

1. d4 {[%clk 0:03:00]}  d5 {[%clk 0:02:59]} 2. Bf4 {[%clk 0:03:00]}  c5 {[%clk 0:02:55]} 3. e3 {[%clk 0:03:00]}  Nc6 {[%clk 0:02:51]} 4. c3 {[%clk 0:03:00]}  Qb6 {[%clk 0:02:51]} 5. Qb3 {[%clk 0:03:00]}  c4 {[%clk 0:02:51]} 6. Qc2 {[%clk 0:03:00]}  e5 {[%clk 0:02:51]} 7. dxe5 {[%clk 0:02:58]}  Bf5 {[%clk 0:02:51]} 8. Qc1 {[%clk 0:02:59]}  g5 {[%clk 0:02:46]} 9. Bg3 {[%clk 0:02:59]}  h5 {[%clk 0:02:42]} 10. h3 {[%clk 0:02:36]}  Bg7 {[%clk 0:02:40]} 11. Nf3 {[%clk 0:02:33]}  h4 {[%clk 0:02:35]} 12. Bh2 {[%clk 0:02:32]}  Nge7 {[%clk 0:02:03]} 13. Nxg5 {[%clk 0:02:23]}  Bxe5 {[%clk 0:02:00]} 14. Nf3 {[%clk 0:01:58]}  Bxh2 {[%clk 0:01:56]} 15. Rxh2 {[%clk 0:01:59]}  O-O-O {[%clk 0:01:48]} 16. Nbd2 {[%clk 0:01:59]}  Ng6 {[%clk 0:01:41]} 17. b3 {[%clk 0:01:48]}  Nce5 {[%clk 0:01:33]} 18. Nd4 {[%clk 0:01:35]}  Nd3+ {[%clk 0:01:28]} 19. Bxd3 {[%clk 0:01:34]}  Bxd3 {[%clk 0:01:28]} 20. Rh1 {[%clk 0:01:25]}  Rhe8 {[%clk 0:01:24]} 21. Qa3 {[%clk 0:01:23]}  Nf4 {[%clk 0:01:20]} 22. O-O-O {[%clk 0:01:13]}  Ne6 {[%clk 0:01:14]} 23. N2f3 {[%clk 0:01:10]}  Nc5 {[%clk 0:01:10]} 24. Nd2 {[%clk 0:00:57]}  Bh7 {[%clk 0:01:07]} 25. N2f3 {[%clk 0:00:45]}  Ne4 {[%clk 0:00:56]} 26. Rd2 {[%clk 0:00:38]}  Nxd2 {[%clk 0:00:52]} 27. Kxd2 {[%clk 0:00:39]}  Qg6 {[%clk 0:00:51]} 28. Ne1 {[%clk 0:00:28]}  Kb8 {[%clk 0:00:47]} 29. Rg1 {[%clk 0:00:21]}  Rd6 {[%clk 0:00:41]} 30. Qb2 {[%clk 0:00:17]}  Ra6 {[%clk 0:00:38]} 31. Nec2 {[%clk 0:00:13]}  Qf6 {[%clk 0:00:33]} 32. f3 {[%clk 0:00:08]}  Bxc2 {[%clk 0:00:28]} 33. Nxc2 {[%clk 0:00:09]}  Qg5 {[%clk 0:00:25]} 34. bxc4 {[%clk 0:00:04]}  dxc4 {[%clk 0:00:22]} 35. Qb4 {[%clk 0:00:03]}  Rxa2 {[%clk 0:00:17]} 36. Qxc4 {[%clk 0:00:03]}  Qxe3+ {[%clk 0:00:16]} 0-1


[Site "https://www.chess.com"]